fUSD/lending_fUSD_20241020
["ID","MTS","AMOUNT","RATE_DAILY","PERIOD"]
[340544133,1729431038578,-250.0,0.00022503,2]
[340544134,1729431038588,-23900.0,0.00022503,2]
[340544135,1729431038599,-408.49170071,0.00022541,2]
[340544136,1729431038609,-408.49170071,0.0002286,2]
[340544137,1729431038619,-396.67,0.0002293,2]
[340544138,1729431038628,-1000.0,0.00022952,2]
[340544139,1729431038638,-2110.0,0.00023,2]
[340544140,1729431038648,-408.49170071,0.00023019,2]
[340544141,1729431038657,-250.0,0.00023027,2]
[340544142,1729431038667,-408.49170071,0.00023393,2]
[340544143,1729431038677,-2110.0,0.000235,2]
[340544144,1729431038687,-585.69,0.00023538,2]
[340544145,1729431038696,-408.49170071,0.00023728,2]
[340544146,1729431038706,-2110.0,0.00024,2]
[340544147,1729431038715,-600.0,0.00024,2]
[340544148,1729431038725,-408.49170071,0.00024002,2]
[340544149,1729431038735,-429.65,0.00024055,2]
[340544150,1729431038744,-506.26,0.00024055,2]
[340544151,1729431038753,-424.46,0.00024055,2]
[340544152,1729431038763,-424.46,0.00024055,2]
[340544153,1729431038774,-500.0,0.000241,2]
[340544154,1729431038784,-500.0,0.000241,2]
[340544155,1729431038794,-408.49170071,0.00024221,2]
[340544156,1729431038803,-408.49170071,0.00024407,2]
[340544157,1729431038813,-2110.0,0.000245,2]
[340544158,1729431038822,-265.455,0.00024597,7]
[340544159,1729431038832,-150.0,0.000246,2]
[340544160,1729431038841,-632.06,0.00024731,2]
[340544161,1729431038850,-408.49170079,0.00024765,2]
[340544162,1729431038859,-261.923,0.00024798,2]
[340544163,1729431038868,-4733.7061,0.00024799,2]
[340544164,1729431038878,-10274.424411,0.000248,2]
[340544165,1729431038888,-503.29145163,0.00024873,2]
[340544166,1729431038897,-154.95,0.00024877,30]
[340544167,1729431038907,-2500.0,0.0002488,2]
[340544168,1729431038917,-8137.29186308,0.0002489,2]
[340544169,1729431038926,-252.1764,0.0002489,2]
[340544170,1729431038936,-8137.29186299,0.00024891,2]
[340544171,1729431038945,-5961.0523599,0.00024892,2]
[340544172,1729431039016,-2176.23950309,0.00024892,2]
[340544173,1729431039026,-8137.29186299,0.00024893,2]
[340544174,1729431039037,-8137.29186299,0.00024894,2]
[340544175,1729431039046,-8137.29186299,0.00024896,2]
[340544176,1729431039056,-8137.29186299,0.00024897,2]
[340544177,1729431039066,-8137.29186299,0.00024898,2]
[340544178,1729431039076,-8137.29186299,0.00024899,2]
[340544179,1729431039085,-17804.5832,0.000249,2]
[340544180,1729431039095,-500.0,0.000249,2]
[340544181,1729431039105,-1000.0,0.000249,2]
[340544182,1729431039115,-15629.051,0.000249,2]
[340544183,1729431039125,-158.86,0.000249,31]
[340544184,1729431039134,-158.86,0.000249,31]
[340544185,1729431039144,-158.86,0.000249,31]
[340544186,1729431039154,-158.86,0.000249,31]
[340544187,1729431039164,-158.86,0.000249,31]
[340544188,1729431039173,-158.86,0.000249,31]
[340544189,1729431039182,-158.86,0.000249,31]
[340544190,1729431039192,-7011.67388903,0.000249,2]
[340544191,1729431039201,-8137.29186299,0.000249,2]
[340544192,1729431039212,-250.0,0.000249,2]
[340544193,1729431039221,-293.8,0.000249,2]
[340544194,1729431039232,-2889.63883065,0.000249,2]
[340544195,1729431039242,-500.0,0.00024931,2]
[340544196,1729431039252,-306.13844033,0.00024931,2]
[340544197,1729431039262,-500.0,0.00024931,2]
[340544198,1729431039273,-500.0,0.00024931,2]
[340544199,1729431039283,-500.0,0.00024931,2]
[340544200,1729431039292,-500.0,0.00024931,2]
[340544201,1729431039302,-500.0,0.00024931,2]
[340544202,1729431039311,-322.77809202,0.00024931,2]
[340544203,1729431039321,-500.0,0.00024989,2]
[340544204,1729431039330,-648.78284398,0.00024989,2]
[340544205,1729431039339,-303.33145705,0.00024989,2]
[340544206,1729431039349,-34444.6966737,0.0002499,5]
[340544207,1729431039359,-248437.504883,0.0002499,5]
[340544208,1729431039368,-690.03556586,0.00024997,14]
[340544209,1729431039377,-3375.1601401,0.00024997,2]
[340544210,1729431039387,-4737.4404303,0.00024997,2]
[340544211,1729431039397,-1244.49,0.00024998,2]
[340544212,1729431039406,-500.0,0.00024998,2]
[340544213,1729431039416,-500.0,0.00024999,2]
[340544214,1729431039425,-500.0,0.00024999,2]
[340544215,1729431039435,-500.0,0.00024999,2]
[340544216,1729431039446,-500.0,0.00024999,2]
[340544217,1729431039455,-543.17191781,0.00024999,2]
[340544218,1729431039465,-500.0,0.00024999,2]
[340544219,1729431039474,-549.61909103,0.00024999,2]
[340544220,1729431039484,-544.52417685,0.00024999,2]
[340544221,1729431039494,-500.0,0.00024999,2]
[340544222,1729431039503,-500.0,0.00024999,2]
[340544223,1729431039513,-500.0,0.00024999,2]
[340544224,1729431039526,-500.0,0.00024999,2]
[340544225,1729431039535,-500.0,0.00024999,2]
[340544226,1729431039544,-500.0,0.00024999,2]
[340544227,1729431039555,-500.0,0.00024999,2]
[340544228,1729431039565,-500.0,0.00024999,2]
[340544229,1729431039575,-500.0,0.00024999,2]
[340544230,1729431039585,-525.1123573,0.00024999,2]
[340544231,1729431039598,-500.0,0.00024999,2]
[340544232,1729431039607,-500.0,0.00024999,2]
[340544233,1729431039617,-500.0,0.00024999,2]
[340544234,1729431039628,-500.0,0.00024999,2]
[340544235,1729431039638,-500.0,0.00024999,2]
[340544236,1729431039647,-500.0,0.00024999,2]
[340544238,1729431039657,-594.90765637,0.00024999,2]
[340544240,1729431039666,-500.0,0.00024999,2]
[340544243,1729431039676,-500.0,0.00024999,2]
[340544244,1729431039686,-500.0,0.00024999,2]
[340544246,1729431039696,-500.0,0.00024999,2]
[340544247,1729431039705,-263.43537121,0.00024999,2]
[340544248,1729431039715,-375.0,0.00024999,2]
[340544250,1729431039725,-4305.96,0.00024999,2]
[340544251,1729431039734,-4305.96,0.00024999,2]
[340544252,1729431039743,-4305.96,0.00024999,2]
[340544253,1729431039752,-4305.96,0.00024999,2]
[340544254,1729431039762,-4305.96,0.00024999,2]
[340544255,1729431039774,-4305.96,0.00024999,2]
[340544256,1729431039784,-4305.96,0.00024999,2]
[340544257,1729431039793,-4305.96,0.00024999,2]
[340544258,1729431039803,-4305.96,0.00024999,2]
[340544259,1729431039812,-4305.96,0.00024999,2]
[340544260,1729431039822,-4305.96,0.00024999,2]
[340544261,1729431039831,-4305.96,0.00024999,2]
[340544263,1729431039840,-4305.96,0.00024999,2]
[340544264,1729431039849,-4305.96,0.00024999,2]
[340544265,1729431039858,-4305.96,0.00024999,2]
[340544266,1729431039868,-4305.96,0.00024999,2]
[340544267,1729431039879,-4305.96,0.00024999,2]
[340544268,1729431039888,-4305.96,0.00024999,2]
[340544269,1729431039898,-4305.96,0.00024999,2]
[340544270,1729431039910,-4305.96,0.00024999,2]
[340544271,1729431039921,-4305.96,0.00024999,2]
[340544272,1729431039930,-4305.96,0.00024999,2]
[340544273,1729431039940,-4305.96,0.00024999,2]
[340544274,1729431039951,-4306.07495736,0.00024999,2]
[340544275,1729431039961,-1244.49,0.00024999,2]
[340544276,1729431039970,-1244.49,0.00024999,2]
[340544277,1729431039979,-1244.49,0.00024999,2]
[340544278,1729431039992,-1244.49,0.00024999,2]
[340544279,1729431040001,-1244.49,0.00024999,2]
[340544280,1729431040010,-1244.49,0.00024999,2]
[340544281,1729431040021,-1244.49,0.00024999,2]
[340544282,1729431040030,-1244.49,0.00024999,2]
[340544283,1729431040039,-1244.49,0.00024999,2]
[340544284,1729431040048,-1244.49,0.00024999,2]
[340544285,1729431040060,-1244.49,0.00024999,2]
[340544286,1729431040068,-1244.49,0.00024999,2]
[340544287,1729431040077,-1244.49,0.00024999,2]
[340544288,1729431040086,-1244.49,0.00024999,2]
[340544289,1729431040096,-1244.49,0.00024999,2]
[340544290,1729431040106,-1244.49,0.00024999,2]
[340544291,1729431040117,-1244.49,0.00024999,2]
[340544292,1729431040126,-1244.49,0.00024999,2]
[340544293,1729431040135,-1244.49,0.00024999,2]
[340544294,1729431040144,-1244.49,0.00024999,2]
[340544295,1729431040154,-1244.49,0.00024999,2]
[340544296,1729431040163,-1244.49,0.00024999,2]
[340544297,1729431040172,-1244.62262231,0.00024999,2]
[340544299,1729431040182,-366.82661672,0.00024999,2]
[340544302,1729431040211,-880.16992698,0.00024999,2]
[340544304,1729431040220,-18.71036766,0.00024999,2]
[340544307,1729431040235,-481.28963234,0.00024999,2]
[340544309,1729431040244,-500.0,0.00024999,2]
[340544310,1729431040253,-500.0,0.00024999,2]
[340544317,1729431040431,-132.06036916,0.00024999,2]
[340544318,1729431040443,-367.93963084,0.00024999,2]
[340544320,1729431040453,-500.0,0.00024999,2]
[340544322,1729431040462,-500.0,0.00024999,2]
[340544324,1729431040471,-500.0,0.00024999,2]
[340544326,1729431040480,-500.0,0.00024999,2]
[340544327,1729431040489,-160.70839849,0.00024999,2]
[340544330,1729431040500,-339.29160151,0.00024999,2]
[340544331,1729431040509,-500.0,0.00024999,2]
[340544333,1729431040521,-460.0,0.00024999,2]
[340544335,1729431040534,-503.0,0.00025,2]
[340544337,1729431040543,-56309.57824872,0.00025,17]
[340544339,1729431040555,-7525.18922931,0.00025,17]
[340544341,1729431040564,-41014.18150933,0.00025,2]
[340544344,1729431040586,-7416.1412329,0.00025,2]
[340544346,1729431040598,-7399.0,0.00025,2]
[340544358,1729431042950,-265.98215129,0.00025,2]
[340544368,1729431046206,-30.53423218,0.00025,2]
[340544370,1729431046468,-12739.53314882,0.00025,2]
[340544371,1729431046479,-70250.28474864,0.00025,2]
[340544372,1729431069559,614.26514168,0.00027,60]
[340544373,1729431251757,248.22,0.00010959,2]
[340544375,1729431594224,250.0,0.0001,2]
[340544376,1729431762380,166.38,0.00010959,2]
[340544378,1729431994564,-300.0,0.00012,2]
[340544389,1729432232052,-350.0,0.00014,2]
[340544391,1729432232062,-218.57964624,0.000159,2]
[340544393,1729432232071,-400.0,0.00016,2]
[340544394,1729432232081,-248.22,0.00017592,2]
[340544397,1729432232092,-450.0,0.00018,2]
[340544398,1729432232102,-1798.59845223,0.00018,2]
[340544401,1729432232113,-6793.082792,0.00018,2]
[340544403,1729432232124,-7619.81758583,0.00018,2]
[340544405,1729432232134,-500.0,0.0002,2]
[340544407,1729432232143,-499.99,0.0002,2]
[340544408,1729432232153,-500.0,0.0002,2]
[340544409,1729432232162,-671.0,0.000207,2]
[340544410,1729432232171,-245.0,0.00021,2]
[340544411,1729432232180,-527.12,0.00021783,2]
[340544412,1729432232191,-2241.76,0.00021783,2]
[340544413,1729432232200,-923.1,0.00021783,2]
[340544414,1729432232210,-550.0,0.00022,2]
[340544415,1729432232220,-904.0,0.00022,2]
[340544416,1729432232229,-1000.0,0.00022498,2]
[340544417,1729432232239,-150.0,0.00022657,2]
[340544418,1729432232249,-250.0,0.00022658,2]
[340544419,1729432232260,-250.0,0.00022658,2]
[340544420,1729432232270,-1541.76520859,0.00022698,2]
[340544421,1729432232282,-1553.467252,0.00022698,2]
[340544422,1729432232294,-6310.88016714,0.00022698,2]
[340544427,1729432238512,-14493.88737227,0.00022698,2]
[340544428,1729432238523,-500.0,0.0002325,2]
[340544429,1729432238533,-2110.0,0.000235,2]
[340544430,1729432238542,-829.0,0.00023535,2]
[340544431,1729432238551,-178.5,0.0002368,2]
[340544432,1729432238560,-314.097,0.00023764,4]
[340544433,1729432238569,-174.461,0.00023764,4]
[340544434,1729432238578,-261.923,0.000238,2]
[340544435,1729432238587,-392.13007046,0.00023834,2]
[340544436,1729432238597,-47041.911,0.000239,2]
[340544437,1729432238606,-9500.0,0.000239,8]
[340544438,1729432238615,-600.0,0.00024,2]
[340544439,1729432238624,-963.85353303,0.00024,2]
[340544440,1729432238635,-1146.14646697,0.00024,2]
[340544441,1729432238646,-19100.0,0.00024,8]
[340544442,1729432238655,-527.12,0.00024047,2]
[340544443,1729432238665,-28600.0,0.000241,8]
[340544444,1729432238674,-18351.76353306,0.000242,8]
[340544445,1729432238686,-1234.63522344,0.000242,8]
[340544446,1729432238706,-992.32388547,0.000242,8]
[340544447,1729432238717,-1177.97442266,0.000242,8]
[340544453,1729432240027,-929.99737828,0.000242,8]
[340544455,1729432240039,-1218.60153986,0.000242,8]
[340544456,1729432240050,-2914.01513215,0.000242,8]
[340544457,1729432240137,-7955.87912296,0.000242,8]
[340544458,1729432240255,-259.57440994,0.000242,8]
[340544459,1729432241978,-1615.7174535,0.000242,8]
[340544461,1729432241989,-1549.51789868,0.000242,8]
[340544463,1729432241999,-248.22,0.00024225,2]
[340544465,1729432242008,-1985.40968132,0.000243,8]
[340544477,1729432243209,-25716.68388557,0.000243,8]
[340544478,1729432243269,-11924.81865287,0.000243,8]
[340544484,1729432246056,-3413.13354696,0.000243,8]
[340544487,1729433411102,250.0,0.0001,2]
[340544489,1729433432551,-300.0,0.00012,2]
[340544490,1729433432562,-350.0,0.00014,2]
[340544491,1729433432571,-34.95,0.00016,2]
[340544492,1729433432586,-300.02348817,0.00016,2]
[340544493,1729433432598,-65.02651183,0.00016,2]
[340544494,1729433432607,-835.0,0.00018,5]
[340544495,1729433432616,-450.0,0.00018,2]
[340544496,1729433432627,-500.0,0.0002,2]
[340544497,1729433432636,-474.4,0.00021206,2]
[340544498,1729433432646,-550.0,0.00022,2]
[340544499,1729433432656,-201.959262,0.00022387,2]
[340544500,1729433432665,-171.196545,0.00022387,2]
[340544501,1729433432674,-319.66594,0.00022387,2]
[340544502,1729433432684,-190.391727,0.00022387,2]
[340544503,1729433432694,-201.959262,0.00022667,2]
[340544504,1729433432703,-319.66594,0.00022667,2]
[340544505,1729433432713,-250.0,0.00022906,2]
[340544506,1729433432723,-178.5,0.00022918,2]
[340544507,1729433432733,-201.959262,0.00022947,2]
[340544508,1729433432742,-319.66594,0.00022947,2]
[340544509,1729433432753,-800.0,0.00022972,2]
[340544510,1729433432762,-320.01133991,0.00023,2]
[340544511,1729433432772,-250.0,0.00023036,2]
[340544512,1729433432782,-150.0,0.00023046,2]
[340544513,1729433432792,-23900.0,0.00023047,2]
[340544514,1729433432801,-499.99,0.00023047,2]
[340544516,1729433432811,-277.33,0.00023145,2]
[340544517,1729433432822,-201.959262,0.00023226,2]
[340544519,1729433432834,-319.66594,0.00023226,2]
[340544521,1729433432843,-200.0,0.00023357,2]
[340544522,1729433432852,-474.4,0.0002347,2]
[340544524,1729433432862,-201.959262,0.00023506,2]
[340544525,1729433432871,-319.66594,0.00023506,2]
[340544527,1729433432881,-251.278,0.00023572,4]
[340544529,1729433432890,-2600.0,0.000239,8]
[340544530,1729433432899,-161.0,0.00024,2]
[340544532,1729433432909,-600.0,0.00024,2]
[340544533,1729433432918,-5200.0,0.00024,8]
[340544535,1729433432927,-7800.0,0.000241,8]
[340544536,1729433432936,-10500.0,0.000242,8]
[340544538,1729433432946,-2000.0,0.000243,2]
[340544539,1729433432955,-200.0,0.000243,2]
[340544541,1729433432965,-1138.0,0.000243,8]
[340544542,1729433432974,-13100.0,0.000243,8]
[340544544,1729433432984,-2000.0,0.000243,2]
[340544546,1729433432994,-200.0,0.000243,2]
[340544547,1729433433003,-30161.35594688,0.00024325,2]
[340544549,1729433433013,-505.93082385,0.00024373,2]
[340544550,1729433433023,-494.4045,0.0002439,2]
[340544552,1729433433033,-283.5187,0.0002439,2]
[340544554,1729433433046,-23967.7729,0.0002439,2]
[340544555,1729433433056,-480.6291,0.0002439,2]
[340544557,1729433433066,-588.9124,0.0002439,2]
[340544558,1729433433076,-6504.2533,0.0002439,2]
[340544560,1729433433086,-157.52552511,0.00024399,2]
[340544562,1729433433096,-1485.0798,0.000244,2]
[340544563,1729433433106,-17728.5562,0.000244,2]
[340544565,1729433433116,-4861.3955,0.000244,2]
[340544566,1729433433126,-493.2447,0.000244,2]
[340544568,1729433433135,-7500.0,0.000244,2]
[340544570,1729433433145,-2600.0,0.000244,8]
[340544571,1729433433154,-184250.20161823,0.0002449,5]
[340544573,1729433433167,-1262.339934,0.0002449,5]
[340544575,1729433433179,-4560.7393,0.0002449,5]
[340545054,1729433438707,-4704.03000001,0.0002449,5]
[340545102,1729433439270,-28017.89442076,0.0002449,5]
[340545104,1729433439279,-151.49,0.0002449,2]
[340545106,1729433439289,-212.33201993,0.00024499,2]
[340545108,1729433439298,-153.73972789,0.00024499,2]
[340545110,1729433439308,-982309.75,0.000245,5]
[340545112,1729433439317,-2110.0,0.000245,2]
[340545114,1729433439326,-2600.0,0.000245,8]
[340545116,1729433439337,-2000.0,0.00024543,2]
[340545118,1729433439346,-200.0,0.00024543,2]
[340545120,1729433439355,-212.52,0.000246,2]
[340545122,1729433439364,-2600.0,0.000246,8]
[340545124,1729433439374,-2600.0,0.000247,9]
[340545126,1729433439384,-150.0,0.00024725,2]
[340545128,1729433439393,-150.0,0.00024728,2]
[340545129,1729433439403,-150.0,0.00024729,2]
[340545131,1729433439412,-150.0,0.00024729,2]
[340545133,1729433439421,-151.13159485,0.0002473,2]
[340545135,1729433439431,-150.0,0.0002473,2]
[340545137,1729433439440,-150.0,0.00024733,2]
[340545139,1729433439450,-150.0,0.00024763,2]
[340545141,1729433439461,-1500.0,0.00024765,2]
[340545143,1729433439471,-150.0,0.00024772,2]
[340545145,1729433439481,-230.04490207,0.00024776,2]
[340545147,1729433439490,-150.0,0.00024777,2]
[340545149,1729433439499,-150.0,0.00024781,2]
[340545151,1729433439509,-150.0,0.00024783,2]
[340545152,1729433439519,-2000.0,0.00024788,2]
[340545154,1729433439528,-200.0,0.00024788,2]
[340545156,1729433439538,-150.0,0.00024792,2]
[340545158,1729433439548,-150.0,0.00024794,2]
[340545160,1729433439557,-5093.43,0.000248,3]
[340545162,1729433439566,-3009.0,0.000248,9]
[340545164,1729433439577,-150.0,0.0002481,2]
[340545166,1729433439589,-150.0,0.00024816,2]
[340545168,1729433439599,-150.0,0.00024828,2]
[340545170,1729433439609,-150.0,0.00024834,2]
[340545172,1729433439618,-150.0,0.00024835,2]
[340545174,1729433439628,-150.0,0.00024839,2]
[340545175,1729433439638,-150.0,0.00024845,2]
[340545177,1729433439647,-150.0,0.00024861,2]
[340545179,1729433439657,-150.0,0.00024862,2]
[340545181,1729433439667,-150.0,0.00024863,2]
[340545183,1729433439676,-154.95,0.00024877,30]
[340545185,1729433439685,-150.0,0.00024878,2]
[340545187,1729433439694,-150.0,0.00024878,2]
[340545189,1729433439704,-150.0,0.0002488,2]
[340545191,1729433439713,-150.0,0.00024885,2]
[340545193,1729433439723,-150.0,0.00024892,2]
[340545195,1729433439732,-158.93,0.000249,31]
[340545197,1729433439742,-158.93,0.000249,31]
[340545199,1729433439751,-158.93,0.000249,31]
[340545200,1729433439760,-158.93,0.000249,31]
[340545202,1729433439769,-158.93,0.000249,31]
[340545204,1729433439779,-158.93,0.000249,31]
[340545206,1729433439788,-158.93,0.000249,31]
[340545208,1729433439798,-428.1353553,0.000249,2]
[340545210,1729433439808,-157.5255251,0.000249,2]
[340545212,1729433439817,-150.0,0.00024905,2]
[340545214,1729433439827,-150.0,0.00024923,2]
[340545216,1729433439839,-150.0,0.00024925,2]
[340545236,1729433440025,-150.0,0.00024926,2]
[340545238,1729433440036,-649.91834476,0.00024931,2]
[340545240,1729433440049,-500.0,0.00024931,2]
[340545242,1729433440059,-500.0,0.00024931,2]
[340545244,1729433440068,-500.0,0.00024931,2]
[340545246,1729433440078,-494.68705664,0.00024931,2]
[340545248,1729433440090,-500.0,0.00024931,2]
[340545250,1729433440099,-262.20882386,0.00024931,2]
[340545252,1729433440108,-500.0,0.00024931,2]
[340545254,1729433440118,-500.0,0.00024931,2]
[340545256,1729433440127,-500.0,0.00024931,2]
[340545258,1729433440137,-500.0,0.00024931,2]
[340545260,1729433440147,-500.0,0.00024931,2]
[340545263,1729433440158,-405.1,0.00024931,2]
[340545265,1729433440168,-500.0,0.00024931,2]
[340545267,1729433440177,-500.0,0.00024931,2]
[340545269,1729433440187,-500.0,0.00024931,2]
[340545272,1729433440196,-477.8,0.00024931,2]
[340545274,1729433440205,-649.714075,0.00024931,2]
[340545277,1729433440215,-500.0,0.00024931,2]
[340545279,1729433440224,-500.0,0.00024931,2]
[340545281,1729433440234,-500.0,0.00024931,2]
[340545283,1729433440243,-500.0,0.00024931,2]
[340545285,1729433440254,-500.0,0.00024931,2]
[340545287,1729433440263,-500.0,0.00024931,2]
[340545289,1729433440273,-500.0,0.00024931,2]
[340545291,1729433440283,-500.0,0.00024931,2]
[340545293,1729433440293,-215.69,0.00024931,2]
[340545295,1729433440302,-500.0,0.00024931,2]
[340545297,1729433440312,-500.0,0.00024931,2]
[340545299,1729433440321,-583.33,0.00024931,2]
[340545300,1729433440331,-583.33,0.00024931,2]
[340545302,1729433440342,-500.0,0.00024931,2]
[340545304,1729433440351,-500.0,0.00024931,2]
[340545306,1729433440360,-500.0,0.00024931,2]
[340545308,1729433440370,-532.25453811,0.00024931,2]
[340545310,1729433440379,-586.28261205,0.00024931,2]
[340545312,1729433440389,-500.0,0.00024931,2]
[340545314,1729433440398,-528.53140715,0.00024931,2]
[340545316,1729433440407,-500.0,0.00024931,2]
[340545318,1729433440417,-500.0,0.00024931,2]
[340545320,1729433440427,-500.0,0.00024931,2]
[340545322,1729433440436,-361.11,0.00024931,2]
[340545324,1729433440446,-616.78393385,0.00024931,2]
[340545326,1729433440455,-500.0,0.00024931,2]
[340545328,1729433440465,-500.0,0.00024931,2]
[340545330,1729433440475,-500.0,0.00024931,2]
[340545332,1729433440485,-361.98,0.00024931,2]
[340545334,1729433440495,-570.87276831,0.00024931,2]
[340545336,1729433440504,-500.0,0.00024931,2]
[340545338,1729433440514,-587.17,0.00024931,2]
[340545340,1729433440524,-500.0,0.00024931,2]
[340545342,1729433440533,-530.96,0.00024931,2]
[340545344,1729433440542,-618.62410059,0.00024931,2]
[340545346,1729433440552,-598.79261917,0.00024931,2]
[340545348,1729433440561,-500.0,0.00024931,2]
[340545350,1729433440571,-500.0,0.00024931,2]
[340545352,1729433440584,-377.45241473,0.00024931,2]
[340545354,1729433440593,-614.54276835,0.00024931,2]
[340545356,1729433440603,-500.00000001,0.00024931,2]
[340545358,1729433440612,-606.26344969,0.00024931,2]
[340545360,1729433440623,-520.17041024,0.00024931,2]
[340545362,1729433440634,-549.2,0.00024931,2]
[340545364,1729433440643,-500.0,0.00024931,2]
[340545366,1729433440654,-500.0,0.00024931,2]
[340545368,1729433440664,-500.0,0.00024931,2]
[340545370,1729433440673,-183.62919546,0.00024931,2]
[340545372,1729433440683,-587.31986599,0.00024931,2]
[340545374,1729433440694,-500.0,0.00024931,2]
[340545376,1729433440704,-638.91639649,0.00024931,2]
[340545378,1729433440713,-528.74560362,0.00024931,2]
[340545379,1729433440722,-235.82736894,0.00024931,2]
[340545381,1729433440731,-590.81,0.00024931,2]
[340545383,1729433440740,-500.0,0.00024931,2]
[340545385,1729433440749,-150.0,0.00024942,2]
[340545387,1729433440759,-150.0,0.0002495,2]
[340545389,1729433440768,-150.0,0.00024951,2]
[340545391,1729433440777,-150.0,0.00024953,2]
[340545393,1729433440787,-150.0,0.00024962,2]
[340545395,1729433440796,-150.0,0.00024972,2]
[340545397,1729433440805,-150.0,0.00024973,2]
[340545399,1729433440815,-150.0,0.00024974,2]
[340545401,1729433440825,-150.0,0.00024975,2]
[340545403,1729433440837,-150.0,0.00024987,2]
[340545404,1729433440849,-500.0,0.00024989,2]
[340545406,1729433440859,-150.0,0.00024992,2]
[340545408,1729433440867,-160.130366,0.00024997,14]
[340545409,1729433440877,-500.0,0.00024997,2]
[340545410,1729433440886,-92065.85384614,0.00024998,5]
[340545411,1729433440895,-6202.1065131,0.00024998,2]
[340545412,1729433440904,-1159.8629842,0.00024998,2]
[340545413,1729433440914,-997.59723496,0.00024999,2]
[340545414,1729433440923,-419.9176844,0.00024999,2]
[340545415,1729433440931,-115627.16741351,0.00024999,2]
[340545416,1729433440945,-33715.1620651,0.00024999,2]
[340545417,1729433440955,-375.0,0.00024999,2]
[340545418,1729433440964,-500.0,0.00024999,2]
[340545419,1729433440973,-500.0,0.00024999,2]
[340545420,1729433440983,-500.0,0.00024999,2]
[340545421,1729433440993,-500.0,0.00024999,2]
[340545423,1729433441002,-500.0,0.00024999,2]
[340545425,1729433441011,-500.0,0.00024999,2]
[340545427,1729433441021,-500.0,0.00024999,2]
[340545429,1729433441030,-500.0,0.00024999,2]
[340545431,1729433441039,-180.9243411,0.00024999,2]
[340545433,1729433441049,-500.0,0.00024999,2]
[340545435,1729433441059,-500.0,0.00024999,2]
[340545436,1729433441068,-500.0,0.00024999,2]
[340545438,1729433441077,-500.0,0.00024999,2]
[340545440,1729433441088,-500.0,0.00024999,2]
[340545442,1729433441097,-500.0,0.00024999,2]
[340545444,1729433441106,-500.0,0.00024999,2]
[340545446,1729433441115,-500.0,0.00024999,2]
[340545448,1729433441124,-500.0,0.00024999,2]
[340545450,1729433441134,-500.0,0.00024999,2]
[340545452,1729433441143,-500.0,0.00024999,2]
[340545454,1729433441152,-263.46115423,0.00024999,2]
[340545456,1729433441161,-583.33,0.00024999,2]
[340545458,1729433441171,-583.33,0.00024999,2]
[340545460,1729433441180,-583.33,0.00024999,2]
[340545462,1729433441190,-583.33,0.00024999,2]
[340545464,1729433441199,-583.33,0.00024999,2]
[340545466,1729433441209,-583.33,0.00024999,2]
[340545468,1729433441220,-583.33,0.00024999,2]
[340545470,1729433441229,-583.33,0.00024999,2]
[340545472,1729433441238,-583.33,0.00024999,2]
[340545474,1729433441247,-583.33,0.00024999,2]